[Event "45th FIDE Olympiad 2024"]
[Site "Budapest"]
[Date "2024.09.13"]
[Round "3.33"]
[White "Kamara, Ansumana"]
[Black "Alhassadi, Yousef A."]
[Result "0-1"]
[ECO "B33"]
[WhiteElo "1876"]
[BlackElo "2082"]
[Annotator "NA RC"]
[PlyCount "96"]
[EventDate "2024.09.05"]
[EventType "team-tourn"]
[EventCountry "HUN"]
[SourceTitle "playchess.com"]
[Source "ChessBase"]
[SourceQuality "1"]
[WhiteTeam "Sierra Leone"]
[BlackTeam "Libya"]
[WhiteTeamCountry "SIE"]
[BlackTeamCountry "LBY"]
[TimeControl "40/5400+30:1800+30"]

1. e4 c5 2. Nf3 e6 3. d4 cxd4 4. Nxd4 Nf6 5. f3 Nc6 6. Nb3 d5 7. Bg5 Be7 8. exd5 Nxd5 9. Bxe7 Qxe7 10. Qd2 O-O 11. Bd3 Qh4+ 12. Qf2 Qf6 13. c3 Qe5+ 14. Qe2 Nf4 15. Bxh7+ Kxh7 16. Qxe5 Nxe5 17. O-O Nfd3 18. N1d2 Nxb2 19. Nc5 b6 20. Nce4 Ba6 21. Rfb1 Nbd3 22. a4 Nc5 23. a5 Nxe4 24. Nxe4 Bd3 25. Re1 Bxe4 26. Rxe4 Nd7 27. Rd4 Nc5 28. Rb4 Rfc8 29. axb6 axb6 30. Rxa8 Rxa8 31. Rxb6 Ra3 32. h3 Rxc3 33. Kh2 e5 34. Rb2 f5 35. Re2 e4 36. fxe4 fxe4 37. h4 Kg6 38. g4 Kf6 39. Rf2+ Ke5 40. Rf7 e3 41. Kg2 Rc2+ 42. Kg1 e2 43. Re7+ Kf4 44. g5 Ne4 45. Rxe4+ Kxe4 46. Kf2 Kd3 47. h5 Rc1 48. h6 e1=Q+ 0-1

[Event "45th FIDE Olympiad 2024"]
[Site "Budapest"]
[Date "2024.09.13"]
[Round "3.34"]
[White "Paichadze, Luka"]
[Black "Tabatabaei, M. Amin"]
[Result "1/2-1/2"]
[ECO "C45"]
[WhiteElo "2516"]
[BlackElo "2714"]
[Annotator "TA"]
[PlyCount "72"]
[EventDate "2024.09.05"]
[EventType "team-tourn"]
[EventCountry "HUN"]
[SourceTitle "playchess.com"]
[Source "ChessBase"]
[SourceQuality "1"]
[WhiteTeam "Georgia"]
[BlackTeam "Iran"]
[WhiteTeamCountry "GEO"]
[BlackTeamCountry "IRI"]
[TimeControl "40/5400+30:1800+30"]

{[%evp 15,72,-7,0,0,0,0,-12,-5,18,10,14,22,21,20,27,12,13,13,29,6,6,2,5,0,0,0,0,0,0,0,3,5,16,0,18,9,18,11,10,12,16,2,6,0,7,4,12,0,4,0,5,0,0,0,0,0,0,0,0]} 1. e4 {[%emt 0:00:04]} e5 {[%emt 0:00:09]} 2. Nf3 {[%emt 0:00:34]} Nc6 {[%emt 0:00:07]} 3. d4 {[%emt 0:00:12]} exd4 {[%emt 0:00:08]} 4. Nxd4 {[%emt 0:00:05]} Nf6 {[%emt 0:00:08]} 5. Nxc6 {[%emt 0:00:12]} bxc6 {[%emt 0:00:08]} 6. Bd3 {[%emt 0:00:13]} d5 {[%emt 0:01:31]} 7. exd5 {[%emt 0:00:07]} cxd5 {[%emt 0:00:07]} 8. O-O {[%emt 0:00:05]} Be7 {[%emt 0:00:57]} 9. h3 {[%emt 0:00:11]} O-O {[%emt 0:00:44]} 10. Nd2 {[%emt 0:00:20]} c5 {[%emt 0:13:30]} 11. b3 {[%emt 0:00:13]} Qc7 {[%emt 0:16:13]} 12. Re1 {[%emt 0:00:52]} h6 {[%emt 0:05:40]} 13. Bb2 {[%emt 0:01:25]} Be6 {[%emt 0:00:19]} 14. Qf3 {[%emt 0:10:43]} Rad8 {[%emt 0:07:52]} (14... Nh7 {with more complications.} 15. Rad1 Rfe8 16. Qh5 Nf6) 15. Bf5 {[%emt 0:06:06]} Bxf5 {[%emt 0:09:41]} 16. Qxf5 {[%emt 0:00:07]} Qd7 {[%emt 0:00:46]} 17. Qf3 {[%emt 0:09:58]} Nh7 {[%emt 0:05:12] The position is equal.} 18. Re2 {[%emt 0:02:17]} Bf6 {[%emt 0:03:32]} 19. Bxf6 {[%emt 0:00:25]} Nxf6 {[%emt 0:00:05]} 20. Rae1 {[%emt 0:00:25]} Rfe8 {[%emt 0:00:25]} 21. Qd3 {[%emt 0:09:37]} Rxe2 {[%emt 0:03:37]} 22. Rxe2 {[%emt 0:02:31]} Re8 {[%emt 0:02:43]} 23. Rxe8+ {[%emt 0:08:53]} Qxe8 $11 {[%emt 0:00:17][%mdl 4096] Endgame. KQN-KQN} 24. Nf3 {[%emt 0:00:19]} Qc6 {[%emt 0:02:40]} 25. Qe3 {[%emt 0:09:34]} Kf8 {[%emt 0:02:57] Repels Qe7+} 26. Ne5 {[%emt 0:03:17]} Qc7 {[%emt 0:01:01]} 27. Nd3 {[%emt 0:01:08]} Nd7 {[%emt 0:06:49]} 28. Qd2 {[%emt 0:01:47]} Nf6 {[%emt 0:01:41]} 29. Qe1 {[%emt 0:05:03]} c4 {[%emt 0:04:29]} 30. Qe5 {[%emt 0:06:14]} Qc8 {[%emt 0:03:57]} 31. Nb4 {[%emt 0:03:40]} cxb3 {[%emt 0:02:49]} 32. axb3 {[%emt 0:00:30]} Kg8 {[%emt 0:00:11]} 33. Nxd5 {[%emt 0:10:54]} Nxd5 {[%emt 0:00:13]} 34. Qxd5 {[%emt 0:00:03]} Qxc2 {[%emt 0:00:05]} 35. Qa8+ {[%emt 0:00:04]} Kh7 {[%emt 0:00:04]} 36. Qxa7 {[%emt 0:00:10]} Qxb3 {[%emt 0:00:07] Not much happened in this game.   Weighted Error Value: White=0.05 (flawless) /Black=0.04 (flawless) .  OK:         	White=4     	Black=10     Best:        	---       	Black=1} 1/2-1/2

[Event "45th FIDE Olympiad 2024"]
[Site "Budapest"]
[Date "2024.09.13"]
[Round "3.34"]
[White "Naser Eldean, Ahmed"]
[Black "Winston Gerald, Mansfield Thomas"]
[Result "1-0"]
[ECO "B07"]
[WhiteElo "1981"]
[BlackElo "1950"]
[Annotator "NA RC"]
[PlyCount "113"]
[EventDate "2024.09.05"]
[EventType "team-tourn"]
[EventCountry "HUN"]
[SourceTitle "playchess.com"]
[Source "ChessBase"]
[SourceQuality "1"]
[WhiteTeam "Libya"]
[BlackTeam "Sierra Leone"]
[WhiteTeamCountry "LBY"]
[BlackTeamCountry "SIE"]
[TimeControl "40/5400+30:1800+30"]

1. e4 d6 2. d4 Nf6 3. Nc3 c6 4. f4 Qa5 5. Bd3 e5 6. Nf3 Nbd7 7. Be3 Be7 8. h3 exd4 9. Bxd4 c5 10. Bxf6 Bxf6 11. e5 dxe5 12. O-O O-O 13. fxe5 Bd8 14. Ne4 c4 15. Bxc4 Nxe5 16. Nxe5 Bb6+ 17. Kh1 Qxe5 18. Qd5 Bc7 19. Qxe5 Bxe5 20. Rxf7 Rxf7 21. Rf1 h6 22. Rxf7 Kh7 23. Re7 Bf4 24. Rf7 Be5 25. Re7 Bf4 26. g3 Bb8 27. Re8 Bd7 28. Nf6+ gxf6 29. Bd3+ Kg7 30. Re7+ Kg8 31. Rxd7 Bxg3 32. Rxb7 Be5 33. b3 a5 34. Kg2 Rd8 35. Ra7 Bc3 36. Kf3 Rd4 37. Rc7 Bd2 38. Ke2 Bg5 39. Rc5 a4 40. Rc4 Rxc4 41. Bxc4+ Kf8 42. b4 Ke7 43. Bd5 Kd6 44. c4 f5 45. Kd3 Bf6 46. Bb7 Bb2 47. c5+ Kc7 48. Bf3 Bc1 49. Kc4 Be3 50. b5 Kd7 51. b6 Ke6 52. Bd5+ Ke7 53. Kb5 Kd8 54. c6 Bf4 55. Kxa4 Bd6 56. Kb5 f4 57. a4 1-0

[Event "45th FIDE Olympiad 2024"]
[Site "Budapest"]
[Date "2024.09.13"]
[Round "3.35"]
[White "Daneshvar, Bardiya"]
[Black "Jobava, Baadur"]
[Result "1/2-1/2"]
[ECO "D94"]
[WhiteElo "2598"]
[BlackElo "2582"]
[Annotator "RC"]
[PlyCount "138"]
[EventDate "2024.09.05"]
[EventType "team-tourn"]
[EventCountry "HUN"]
[SourceTitle "playchess.com"]
[Source "ChessBase"]
[SourceQuality "1"]
[WhiteTeam "Iran"]
[BlackTeam "Georgia"]
[WhiteTeamCountry "IRI"]
[BlackTeamCountry "GEO"]
[TimeControl "40/5400+30:1800+30"]

1. Nf3 {[%emt 0:00:06]} Nf6 {[%emt 0:00:27]} 2. c4 {[%emt 0:00:04]} c6 {[%emt 0:00:12]} 3. Nc3 {[%emt 0:00:11]} d5 {[%emt 0:00:07]} 4. e3 {[%emt 0:00:04]} g6 {[%emt 0:00:05]} 5. d4 {[%emt 0:00:05]} Bg7 {[%emt 0:00:06]} 6. Be2 {[%emt 0:00:03]} O-O {[%emt 0:00:10]} 7. O-O {[%emt 0:00:08]} Ne4 {[%emt 0:00:20]} 8. h3 {[%emt 0:00:07]} b6 {[%emt 0:04:00]} 9. a4 {[%emt 0:02:56]} Ba6 {[%emt 0:17:12]} 10. cxd5 {[%emt 0:03:46]} cxd5 {[%emt 0:07:15]} 11. Bb5 {[%emt 0:09:34]} Bb7 {[%emt 0:04:06]} 12. Qb3 {[%emt 0:06:28]} Nxc3 {[%emt 0:04:28]} 13. bxc3 {[%emt 0:01:36]} Nc6 {[%emt 0:00:20]} 14. Ba3 {[%emt 0:01:28]} Qc7 {[%emt 0:00:14]} 15. Rfc1 {[%emt 0:02:43]} Rfc8 {[%emt 0:04:06]} 16. Nd2 {[%emt 0:04:49]} e5 {[%emt 0:05:32]} 17. Nf3 {[%emt 0:07:32]} Na5 {[%emt 0:03:55]} 18. Qd1 {[%emt 0:02:54]} Nc4 {[%emt 0:13:11]} 19. Bxc4 {[%emt 0:03:41]} dxc4 {[%emt 0:00:08]} 20. Nxe5 {[%emt 0:05:03]} Bxe5 {[%emt 0:00:06]} 21. dxe5 {[%emt 0:00:02]} Qxe5 {[%emt 0:00:07]} 22. Bd6 {[%emt 0:02:26]} Qe6 {[%emt 0:02:17]} 23. Ra2 {[%emt 0:08:35]} Bc6 {[%emt 0:00:10]} 24. Rd2 {[%emt 0:09:46]} Rd8 {[%emt 0:04:34]} 25. Rd4 {[%emt 0:04:21]} Bxa4 {[%emt 0:05:24]} 26. Qd2 {[%emt 0:00:03]} f5 {[%emt 0:04:30]} 27. f3 {[%emt 0:05:46]} Rd7 {[%emt 0:01:47]} 28. Bf4 {[%emt 0:03:09]} a5 {[%emt 0:02:01]} 29. Re1 {[%emt 0:01:16]} Bc6 {[%emt 0:03:26]} 30. Rd1 {[%emt 0:01:07]} Raa7 {[%emt 0:03:13]} 31. Qb2 {[%emt 0:03:03]} Bd5 {[%emt 0:01:43]} 32. Kh2 {[%emt 0:01:36]} Kg7 {[%emt 0:05:52]} 33. Qb5 {[%emt 0:01:11]} Qc6 {[%emt 0:00:19]} 34. Be5+ {[%emt 0:00:14]} Kf7 {[%emt 0:00:34]} 35. Qb2 {[%emt 0:01:33]} Ke8 {[%emt 0:04:36]} 36. e4 {[%emt 0:06:25]} fxe4 {[%emt 0:00:05]} 37. fxe4 {[%emt 0:00:06]} Bxe4 {[%emt 0:00:20]} 38. Rd6 {[%emt 0:00:04]} Rxd6 {[%emt 0:00:32]} 39. Rxd6 {[%emt 0:00:02]} Qc5 {[%emt 0:00:22]} 40. Re6+ {[%emt 0:02:12]} Kd7 {[%emt 0:01:31]} 41. Bd4 {[%emt 0:07:06]} Qc7+ {[%emt 0:03:13]} 42. Re5 {[%emt 0:02:09]} Kc8 {[%emt 0:10:37]} 43. Kg1 {[%emt 0:06:27]} Bc6 {[%emt 0:00:59]} 44. Qxb6 {[%emt 0:07:25]} Qxb6 {[%emt 0:01:03]} 45. Bxb6 {[%emt 0:00:05]} Rb7 {[%emt 0:01:56]} 46. Bxa5 {[%emt 0:00:06]} Rb2 {[%emt 0:00:22]} 47. Rg5 {[%emt 0:00:05]} Kd7 {[%emt 0:00:42]} 48. Bb4 {[%emt 0:00:24]} Rc2 {[%emt 0:00:33]} 49. Rg3 {[%emt 0:00:19]} Ke6 {[%emt 0:00:27]} 50. Bf8 {[%emt 0:02:12]} Be4 {[%emt 0:01:03]} 51. Bh6 {[%emt 0:01:05]} Kf5 {[%emt 0:05:00]} 52. Rg5+ {[%emt 0:01:26]} Kf6 {[%emt 0:00:05]} 53. Rg4 {[%emt 0:01:33]} Bd5 {[%emt 0:00:56]} 54. Rg3 {[%emt 0:00:20]} Bc6 {[%emt 0:00:52]} 55. Bg5+ {[%emt 0:01:52]} Ke6 {[%emt 0:00:23]} 56. Bh6 {[%emt 0:01:00]} Be4 {[%emt 0:00:37]} 57. Rg4 {[%emt 0:00:52]} Bd3 {[%emt 0:00:37]} 58. Bg7 {[%emt 0:01:11]} Kf5 {[%emt 0:00:06]} 59. Rg3 {[%emt 0:00:48]} h5 {[%emt 0:02:32]} 60. Rf3+ {[%emt 0:00:19]} Ke4 {[%emt 0:00:19]} 61. Bd4 {[%emt 0:01:01]} Kd5 {[%emt 0:00:30]} 62. Rf2 {[%emt 0:00:24]} Rc1+ {[%emt 0:00:32]} 63. Kh2 {[%emt 0:00:01]} Be4 {[%emt 0:00:40]} 64. h4 {[%emt 0:00:36]} Rd1 {[%emt 0:00:21]} 65. Bg7 {[%emt 0:00:17]} Bf5 {[%emt 0:01:11]} 66. Re2 {[%emt 0:00:37]} Kc6 {[%emt 0:00:22]} 67. Kg3 {[%emt 0:00:35]} Rd7 {[%emt 0:00:12]} 68. Bf6 {[%emt 0:00:20]} Rd6 {[%emt 0:00:15]} 69. Bg7 {[%emt 0:00:10]} Rd7 {[%emt 0:00:05]} 1/2-1/2

[Event "45th FIDE Olympiad 2024"]
[Site "Budapest"]
[Date "2024.09.13"]
[Round "3.35"]
[White "Adeshole Beckley, Brian"]
[Black "Abugenda, Nagi"]
[Result "0-1"]
[ECO "E11"]
[WhiteElo "1814"]
[BlackElo "1975"]
[Annotator "NA RC"]
[PlyCount "79"]
[EventDate "2024.09.05"]
[EventType "team-tourn"]
[EventCountry "HUN"]
[SourceTitle "playchess.com"]
[Source "ChessBase"]
[SourceQuality "1"]
[WhiteTeam "Sierra Leone"]
[BlackTeam "Libya"]
[WhiteTeamCountry "SIE"]
[BlackTeamCountry "LBY"]
[TimeControl "40/5400+30:1800+30"]

1. d4 Nf6 2. c4 e6 3. Nf3 Bb4+ 4. Bd2 Qe7 5. a3 Bxd2+ 6. Qxd2 b6 7. g3 Bb7 8. Bg2 O-O 9. O-O d6 10. Nc3 Nbd7 11. Rfe1 c5 12. e3 Rfd8 13. d5 exd5 14. cxd5 a6 15. e4 b5 16. Qf4 Re8 17. Bh3 Ne5 18. Nxe5 Qxe5 19. Qxe5 Rxe5 20. f4 Re7 21. e5 Ne8 22. e6 Nf6 23. exf7+ Kxf7 24. Rxe7+ Kxe7 25. Re1+ Kf8 26. Bg2 Re8 27. Re6 Rxe6 28. dxe6 Bxg2 29. Kxg2 g6 30. Kf3 Ke7 31. g4 Kxe6 32. h4 d5 33. Ne2 h5 34. g5 Ne4 35. b4 c4 36. Nd4+ Kf7 37. f5 gxf5 38. Nxf5 c3 39. Ke3 c2 40. Kd4 0-1

[Event "45th FIDE Olympiad 2024"]
[Site "Budapest"]
[Date "2024.09.13"]
[Round "3.36"]
[White "Pantsulaia, Levan"]
[Black "Movahed, Sina"]
[Result "1-0"]
[ECO "C00"]
[WhiteElo "2516"]
[BlackElo "2528"]
[Annotator "RC"]
[PlyCount "95"]
[EventDate "2024.09.05"]
[EventType "team-tourn"]
[EventCountry "HUN"]
[SourceTitle "playchess.com"]
[Source "ChessBase"]
[SourceQuality "1"]
[WhiteTeam "Georgia"]
[BlackTeam "Iran"]
[WhiteTeamCountry "GEO"]
[BlackTeamCountry "IRI"]
[TimeControl "40/5400+30:1800+30"]

1. Nf3 {[%emt 0:00:07]} d5 {[%emt 0:00:14]} 2. g3 {[%emt 0:00:42]} Nf6 {[%emt 0:00:13]} 3. Bg2 {[%emt 0:00:10]} c5 {[%emt 0:00:11]} 4. O-O {[%emt 0:05:20]} e6 {[%emt 0:00:12]} 5. d3 {[%emt 0:09:30]} Nc6 {[%emt 0:00:43]} 6. Nbd2 {[%emt 0:00:07]} Be7 {[%emt 0:00:19]} 7. e4 {[%emt 0:00:06]} O-O {[%emt 0:00:20]} 8. Re1 {[%emt 0:00:11]} Qc7 {[%emt 0:01:46]} 9. e5 {[%emt 0:05:15]} Nd7 {[%emt 0:00:22]} 10. Qe2 {[%emt 0:00:02]} b5 {[%emt 0:00:32]} 11. h4 {[%emt 0:00:25]} a5 {[%emt 0:02:22]} 12. Nf1 {[%emt 0:00:26]} a4 {[%emt 0:03:09]} 13. a3 {[%emt 0:02:51]} b4 {[%emt 0:02:29]} 14. Bf4 {[%emt 0:02:10]} Ba6 {[%emt 0:03:18]} 15. Ne3 {[%emt 0:03:22]} Qa5 {[%emt 0:07:18]} 16. h5 {[%emt 0:05:44]} bxa3 {[%emt 0:13:24]} 17. bxa3 {[%emt 0:01:40]} Nd4 {[%emt 0:05:52]} 18. Qd1 {[%emt 0:16:15]} h6 {[%emt 0:04:10]} 19. c4 {[%emt 0:00:57]} dxc4 {[%emt 0:02:58]} 20. Nxc4 {[%emt 0:06:12]} Bxc4 {[%emt 0:00:32]} 21. Nxd4 {[%emt 0:09:44]} cxd4 {[%emt 0:02:30]} 22. dxc4 {[%emt 0:00:05]} Rad8 {[%emt 0:08:00]} 23. Bd2 {[%emt 0:06:13]} Qc7 {[%emt 0:06:58]} 24. Qxa4 {[%emt 0:05:46]} Rb8 {[%emt 0:10:51]} 25. Qc6 {[%emt 0:05:23]} Qa7 {[%emt 0:02:30]} 26. Bb4 {[%emt 0:01:29]} Rfc8 {[%emt 0:01:07]} 27. Qe4 {[%emt 0:00:23]} Bxb4 {[%emt 0:03:41]} 28. axb4 {[%emt 0:00:06]} Qb6 {[%emt 0:00:26]} 29. Bf1 {[%emt 0:03:49]} Qxb4 {[%emt 0:00:58]} 30. Bd3 {[%emt 0:00:32]} Nf8 {[%emt 0:00:15]} 31. Qxd4 {[%emt 0:00:08]} Rd8 {[%emt 0:02:12]} 32. Qe3 {[%emt 0:00:25]} Rbc8 {[%emt 0:01:32]} 33. Reb1 {[%emt 0:04:07]} Qe7 {[%emt 0:02:11]} 34. Ra7 {[%emt 0:02:24]} Rc7 {[%emt 0:02:40]} 35. Rba1 {[%emt 0:01:27]} Rcd7 {[%emt 0:05:15]} 36. Be2 {[%emt 0:02:28]} Rc8 {[%emt 0:03:12]} 37. Rxd7 {[%emt 0:00:32]} Nxd7 {[%emt 0:00:39]} 38. Ra7 {[%emt 0:00:20]} Qd8 {[%emt 0:01:19]} 39. Qd4 {[%emt 0:01:15]} Nc5 {[%emt 0:01:53]} 40. Qxd8+ {[%emt 0:01:39]} Rxd8 {[%emt 0:00:01]} 41. Rc7 {[%emt 0:01:03]} Na6 {[%emt 0:06:32]} 42. Rc6 {[%emt 0:03:03]} Nb8 {[%emt 0:02:37]} 43. Rd6 {[%emt 0:00:54]} Rc8 {[%emt 0:00:08]} 44. Bf3 {[%emt 0:00:27]} Kf8 {[%emt 0:02:00]} 45. Bb7 {[%emt 0:00:51]} Rxc4 {[%emt 0:00:51]} 46. Rd8+ {[%emt 0:00:06]} Ke7 {[%emt 0:00:09]} 47. Rxb8 {[%emt 0:00:07]} Rb4 {[%emt 0:00:09]} 48. f4 {[%emt 0:01:42]} 1-0

[Event "45th FIDE Olympiad 2024"]
[Site "Budapest"]
[Date "2024.09.13"]
[Round "3.36"]
[White "Elshaafi, Ali"]
[Black "Moses, Ina Ebenezer Conteh"]
[Result "0-1"]
[ECO "B12"]
[WhiteElo "1984"]
[BlackElo "1631"]
[Annotator "NA RC"]
[PlyCount "118"]
[EventDate "2024.09.05"]
[EventType "team-tourn"]
[EventCountry "HUN"]
[SourceTitle "playchess.com"]
[Source "ChessBase"]
[SourceQuality "1"]
[WhiteTeam "Libya"]
[BlackTeam "Sierra Leone"]
[WhiteTeamCountry "LBY"]
[BlackTeamCountry "SIE"]
[TimeControl "40/5400+30:1800+30"]

1. e4 c6 2. d4 d5 3. e5 Bf5 4. h4 h6 5. g4 Bh7 6. e6 fxe6 7. Bd3 Bxd3 8. Qxd3 Na6 9. Nf3 Nf6 10. Qg6+ Kd7 11. Ne5+ Kc8 12. Nf7 Qa5+ 13. Bd2 Qb6 14. Nc3 Rh7 15. O-O-O Qxd4 16. g5 hxg5 17. Bxg5 Qg4 18. Qd3 Qf5 19. Qd4 Nd7 20. Qd3 g6 21. Qd4 Rxf7 22. f4 Bg7 23. Qd2 Nac5 24. h5 Bxc3 25. Qxc3 Ne4 26. Qe3 Nxg5 27. fxg5 gxh5 28. Rxh5 Rh7 29. Rxh7 Qxh7 30. Qxe6 Kc7 31. g6 Qh6+ 32. Kb1 Qg5 33. a3 Nf8 34. Qf7 Nxg6 35. Rh1 Ne5 36. Qe6 Qf6 37. Qh3 Rf8 38. b3 Nf3 39. Qg3+ Qd6 40. Qg7 Nd2+ 41. Ka2 Rf2 42. Qc3 Ne4 43. Qa5+ Kd7 44. Qxa7 Rxc2+ 45. Kb1 Rh2 46. Qxb7+ Ke6 47. Qc8+ Kf7 48. Qf5+ Nf6 49. Rxh2 Qxh2 50. a4 Qh7 51. Qxh7+ Nxh7 52. a5 Nf6 53. Kc2 Ke8 54. a6 Nd7 55. Kc3 Kd8 56. Kb4 Kc7 57. Kc3 e5 58. Kd3 Nc5+ 59. Kc3 Nxa6 0-1

[Event "45th FIDE Olympiad 2024"]
[Site "Budapest"]
[Date "2024.09.13"]
[Round "3.37"]
[White "Peralta, Fernando"]
[Black "Duda, Jan-Krzysztof"]
[Result "0-1"]
[ECO "E90"]
[WhiteElo "2558"]
[BlackElo "2732"]
[Annotator "TA"]
[PlyCount "70"]
[EventDate "2024.09.05"]
[EventType "team-tourn"]
[EventCountry "HUN"]
[SourceTitle "playchess.com"]
[Source "ChessBase"]
[SourceQuality "1"]
[WhiteTeam "Argentina"]
[BlackTeam "Poland"]
[WhiteTeamCountry "ARG"]
[BlackTeamCountry "POL"]
[TimeControl "40/5400+30:1800+30"]

{[%evp 18,70,40,35,72,75,79,75,68,72,88,59,66,70,77,65,79,79,72,70,81,64,83,62,62,59,59,49,52,54,58,44,50,43,46,27,60,22,15,-41,0,0,113,121,113,116,140,114,142,153,160,144,142,0,0]} 1. d4 {[%emt 0:00:03]} Nf6 {[%emt 0:00:07]} 2. c4 {[%emt 0:00:06]} c5 {[%emt 0:00:07]} 3. d5 {[%emt 0:00:23]} g6 {[%emt 0:00:08]} 4. Nc3 {[%emt 0:00:35]} Bg7 {[%emt 0:00:07]} 5. e4 {[%emt 0:00:06]} d6 {[%emt 0:00:07]} 6. h3 {[%emt 0:04:28]} O-O {[%emt 0:01:10]} 7. Nf3 {[%emt 0:00:05]} e6 {[%emt 0:00:12]} 8. Bd3 {[%emt 0:00:14]} exd5 {[%emt 0:00:07]} 9. exd5 {[%emt 0:00:13]} Re8+ {[%emt 0:00:06]} 10. Be3 {[%emt 0:00:05]} Rxe3+ {[%emt 0:00:05]} 11. fxe3 {[%emt 0:00:05]} Qe7 {[%emt 0:00:07]} 12. O-O {[%emt 0:00:40]} Nbd7 {[%emt 0:00:05] White is better.} 13. Qe1 {[%emt 0:03:22]} h6 {[%emt 0:02:58]} 14. Qf2 {[%emt 0:41:22]} Nh7 {[%emt 0:03:56]} 15. Ne4 {[%emt 0:03:37]} Ne5 {[%emt 0:03:00]} 16. Nxe5 {[%emt 0:01:59]} Bxe5 {[%emt 0:00:06]} 17. Nc3 {[%emt 0:11:06][%cal Be4c3,Bc3e2,Be2f4,Bf4d3,Bd3b4,Bb4d5][%mdl 32]} Bd7 {[%emt 0:01:19]} 18. Ne2 {[%emt 0:00:31]} (18. Kh1 {is more complex.} Ng5 19. Qh4 Kg7 20. a4) 18... Be8 {[%emt 0:07:15]} 19. Nf4 {[%emt 0:02:44]} Nf6 {[%emt 0:01:04][%cal Bh7f6,Bf6d7,Bd7e5][%mdl 32]} 20. Rae1 {[%emt 0:04:18]} Nd7 {[%emt 0:07:00]} 21. Bc2 {[%emt 0:11:12]} a6 {[%emt 0:01:20]} 22. a4 {[%emt 0:02:00]} b6 {[%emt 0:07:55][%cal Bb7b6,Bb6b5][%mdl 32]} 23. Nd3 {[%emt 0:00:24]} Bg7 {[%emt 0:00:16][%cal Ob6b5]} 24. b4 {[%emt 0:00:55]} cxb4 {[%emt 0:04:45]} ({Reject} 24... Bc3 25. Rb1 $16) 25. Nxb4 {[%emt 0:00:05]} Ne5 {[%emt 0:00:06][%cal Oa6a5] Repels Nc6} 26. Bb3 {[%emt 0:04:50]} Qc7 {[%emt 0:07:36][%cal Ob6b5]} 27. Rd1 {[%emt 0:01:01][%cal Ob4c6]} (27. Qc2 {simplifies} h5 28. Re2 Bd7 29. Nd3) 27... b5 {[%emt 0:01:39] [#]} 28. c5 {[%emt 0:07:10]} dxc5 {[%emt 0:28:18]} (28... bxa4 $5 29. Ba2 Bb5 $17 (29... dxc5 30. d6 $11) (29... Qxc5 30. Nc6 $15)) 29. d6 $36 {[%emt 0:00:04][%mdl 2048] White has some pressure.} Qa7 {[%emt 0:00:05] [#]} (29... Qd7 $11 {remains equal.} 30. Bd5 Ra7) 30. Nd5 $1 $16 {[%emt 0:01:07] Threatens to win with Nf6+.} c4 {[%emt 0:00:06]} 31. Bc2 {[%emt 0:00:34]} Rd8 {[%emt 0:02:19]} 32. Nf6+ {[%emt 0:00:27]} Bxf6 {[%emt 0:01:28]} 33. Qxf6 {[%emt 0:00:04]} Qxe3+ {[%emt 0:00:06]} 34. Kh1 {[%emt 0:00:56]} Qg5 {[%emt 0:00:10] [#]} 35. Qxg5 {[%emt 0:00:37]} ({White has to play} 35. Qf2 $1 $16) 35... hxg5 {[%emt 0:00:06][%mdl 32768] Weighted Error Value: White=0.19 (very precise) /Black=0.13 (very precise) .  Mistake:       	White=2     	Black=1      Inaccurate:     	White=2     	Black=1      OK:         	White=3     	Black=9      Best:        	White=2     	Black=4      Strong:       	White=1     	---       . Loss on time!?} 0-1

[Event "45th FIDE Olympiad 2024"]
[Site "Budapest"]
[Date "2024.09.13"]
[Round "3.37"]
[White "Bhakta, Bahadur Monger"]
[Black "Pereira, Sergio"]
[Result "1/2-1/2"]
[ECO "D02"]
[WhiteElo "1911"]
[BlackElo "1988"]
[Annotator "NA RC"]
[PlyCount "91"]
[EventDate "2024.09.05"]
[EventType "team-tourn"]
[EventCountry "HUN"]
[SourceTitle "playchess.com"]
[Source "ChessBase"]
[SourceQuality "1"]
[WhiteTeam "Bhutan"]
[BlackTeam "Sao Tome and Principe"]
[WhiteTeamCountry "BTN"]
[BlackTeamCountry "SAO"]
[TimeControl "40/5400+30:1800+30"]

1. d4 Nf6 2. Nf3 d5 3. Bf4 c5 4. e3 Nc6 5. Nbd2 Bf5 6. c3 Qb6 7. Qb3 c4 8. Qxb6 axb6 9. Be2 b5 10. O-O h6 11. Ne5 e6 12. Ndf3 Ne7 13. h3 Bh7 14. Nd2 Nc8 15. Ng4 Nd7 16. f3 Ncb6 17. Rfc1 Na4 18. b3 Nxc3 19. Bf1 Bb4 20. e4 Ra3 21. Nb1 Nxb1 22. Raxb1 c3 23. Nf2 O-O 24. Nd3 Ba5 25. Bd6 b4 26. Nxb4 dxe4 27. fxe4 Rc8 28. Nc6 Rxc6 29. Bxa3 c2 30. Ra1 Bc3 31. d5 Bd4+ 32. Kh2 exd5 33. exd5 Be5+ 34. Kg1 Rc8 35. Bc4 Bd4+ 36. Kf1 Ne5 37. d6 Bd3+ 38. Bxd3 Nxd3 39. d7 Rd8 40. Rxc2 Bxa1 41. Rc8 Bf6 42. Bd6 Nc1 43. Bc7 Rf8 44. Bd6 Rd8 45. Bc7 Rf8 46. Bd6 1/2-1/2